bitfinex-derivatives/quotes_SOLF0:USTF0_20230105
["timestamp","ask_amount","ask_price","bid_price","bid_amount"]
[1672905722776,15.1,13.231,13.229,10.0]
[1672905723302,15.1,13.239,13.231,10.0]
[1672905723616,15.04,13.241,13.231,25.02]
[1672905723826,14.95,13.237,13.231,10.0]
[1672905724353,15.1,13.236,13.231,10.0]
[1672905726136,15.1,13.236,13.229,10.06816589]
[1672905727504,15.04,13.234,13.229,0.06816589]
[1672905742530,15.04,13.234,13.229,10.06816589]
[1672905742740,0.06664125,13.236,13.231,15.0]
[1672905742947,0.06664125,13.236,13.232,10.0]
[1672905745261,0.06664125,13.236,13.229,10.06816589]
[1672905748420,0.06664125,13.236,13.229,25.16816589]
[1672905748631,0.06664125,13.236,13.235,12.43189734]
[1672905748841,0.06586303,13.24,13.234,10.0]
[1672905749056,10.06480893,13.242,13.237,12.43189734]
[1672905749575,0.06480893,13.242,13.237,12.43189734]
[1672905750519,0.06480893,13.242,13.235,0.06498263]
[1672905750730,0.06480893,13.242,13.237,12.43189734]
[1672905750942,0.06480893,13.242,13.238,10.0]
[1672905752413,0.06480893,13.242,13.237,12.43189734]
[1672905752623,15.1,13.241,13.237,12.43189734]
[1672905752936,15.036,13.241,13.235,0.06498263]
[1672905756611,15.036,13.241,13.238,10.0]
[1672905757455,15.036,13.241,13.237,12.43189734]
[1672905758822,15.036,13.241,13.235,0.06498263]
[1672905760925,15.036,13.241,13.237,12.43189734]
[1672905761447,0.06480893,13.242,13.238,10.0]
[1672905761660,15.04,13.25,13.24,15.0]
[1672905761867,15.04,13.25,13.238,10.0]
[1672905761868,15.1,13.254,13.247,12.43189734]
[1672905762289,15.1,13.252,13.248,10.0]
[1672905762500,15.1,13.254,13.248,10.0]
[1672905766704,14.95,13.25,13.247,12.43189734]
[1672905766909,15.1,13.248,13.246,0.06055267]
[1672905767124,15.1,13.247,13.243,10.0]
[1672905768598,15.1,13.247,13.242,0.06655717]
[1672905769124,15.04,13.243,13.242,0.06655717]
[1672905769336,15.04,13.243,13.239,2.77357795]
[1672905769545,15.04,13.243,13.238,0.06860181]
[1672905774059,15.1,13.245,13.238,0.06860181]
[1672905775642,14.95,13.246,13.238,0.06860181]
[1672905777741,37.63198636,13.247,13.238,15.08860181]
[1672905777951,0.0638837,13.247,13.239,10.0]
[1672905778270,15.1,13.252,13.246,12.43189734]
[1672905778471,15.1,13.252,13.247,10.0]
[1672905779522,15.1,13.252,13.246,12.43189734]
[1672905781105,15.1,13.248,13.245,0.06571483]
[1672905781313,15.1,13.248,13.242,0.06982378]
[1672905781527,15.1,13.248,13.24,0.06335162]
[1672905782262,15.1,13.246,13.24,0.06335162]
[1672905786154,15.1,13.248,13.24,0.06335162]
[1672905787832,15.1,13.246,13.24,0.06335162]
[1672905790255,15.1,13.248,13.245,12.43189734]
[1672905790571,15.1,13.248,13.242,0.06969102]
[1672905793089,15.1,13.248,13.245,12.43189734]
[1672905794140,15.1,13.248,13.242,0.06969102]
[1672905796237,15.1,13.248,13.245,12.43189734]
[1672905800126,15.1,13.247,13.242,0.06969102]
[1672905800330,15.1,13.245,13.242,0.06969102]
[1672905800653,10.0,13.244,13.24,2.77339686]
[1672905801069,10.0,13.244,13.237,0.0697706]
[1672905802120,14.95,13.243,13.237,0.0697706]
[1672905807584,71.6369694,13.247,13.237,15.1697706]
[1672905807795,0.0669694,13.247,13.239,14.99]
[1672905808006,0.0669694,13.247,13.24,10.0]
[1672905812315,15.04,13.246,13.238,10.0]
[1672905812531,10.0,13.245,13.237,0.0697706]
[1672905812947,52.73929814,13.246,13.237,10.0697706]
[1672905813478,10.0,13.245,13.237,0.0697706]
[1672905813686,15.1,13.244,13.237,0.0697706]
[1672905813894,10.0,13.243,13.237,0.0697706]
[1672905817784,10.0,13.241,13.237,0.0697706]
[1672905822621,14.95,13.242,13.237,0.0697706]
[1672905828087,7.53,13.241,13.237,0.0697706]
[1672905831035,0.0617359,13.244,13.237,0.0697706]
[1672905831247,0.0007359,13.244,13.237,0.0697706]
[1672905848166,0.0007359,13.244,13.243,12.30070186]
[1672905848379,0.06353217,13.248,13.243,12.30070186]
[1672905848589,0.06896127,13.25,13.241,0.06015992]
[1672905848799,0.06139338,13.25,13.241,0.07119235]
[1672905850686,0.06139338,13.25,13.244,12.30070186]
[1672905851219,10.0,13.254,13.245,10.0]
[1672905851842,10.0,13.254,13.244,12.30070186]
[1672905852157,10.06335873,13.254,13.244,12.36171086]
[1672905852475,10.06335873,13.254,13.244,0.061009]
[1672905853212,66.59,13.253,13.244,9e-06]
[1672905853425,10.0,13.252,13.244,9e-06]
[1672905853948,10.0,13.25,13.244,9e-06]
[1672905854358,37.69929814,13.245,13.244,9e-06]
[1672905854569,10.0,13.244,13.24,0.06409628]
[1672905854786,10.0,13.244,13.237,0.06230016]
[1672905862770,37.69929814,13.245,13.237,0.06230016]
[1672905862987,10.0,13.244,13.237,0.06230016]
[1672905863610,37.69929814,13.245,13.237,0.06230016]
[1672905863814,10.0,13.244,13.237,0.06230016]
[1672905866443,37.69929814,13.245,13.237,0.06230016]
[1672905866963,10.0,13.244,13.237,0.06230016]
[1672905867173,37.69929814,13.245,13.237,0.06230016]
[1672905867384,10.0,13.244,13.237,0.06230016]
[1672905868444,37.69929814,13.245,13.237,0.06230016]
[1672905868655,10.0,13.244,13.237,0.06230016]
[1672905869178,37.69929814,13.245,13.237,0.06230016]
[1672905869392,10.0,13.244,13.237,0.06230016]
[1672905870541,37.69929814,13.245,13.237,0.06230016]
[1672905870755,10.0,13.244,13.237,0.06230016]
[1672905871490,37.69929814,13.245,13.237,0.06230016]
[1672905871698,10.0,13.244,13.237,0.06230016]
[1672905873593,0.06524607,13.247,13.237,0.06230016]
[1672905875589,37.69929814,13.244,13.237,0.06230016]
[1672905875802,10.0,13.243,13.237,0.06230016]
[1672905876326,37.69929814,13.244,13.237,0.06230016]
[1672905876536,10.0,13.243,13.237,0.06230016]
[1672905877061,37.69929814,13.244,13.237,0.06230016]
[1672905877272,10.0,13.243,13.237,0.06230016]
[1672905879588,0.06524607,13.247,13.237,0.06230016]
[1672905880216,37.69929814,13.244,13.237,0.06230016]
[1672905880422,10.0,13.243,13.237,0.06230016]
[1672905882109,37.69929814,13.244,13.237,0.06230016]
[1672905883057,0.06524607,13.247,13.237,0.06230016]
[1672905883268,0.00024607,13.247,13.237,0.06230016]
[1672905884108,37.69929814,13.244,13.237,0.06230016]
[1672905884427,10.0,13.243,13.237,0.06230016]
[1672905885055,0.00024607,13.247,13.237,0.06230016]
[1672905885266,0.00024607,13.247,13.243,12.30070186]
[1672905885472,0.00024607,13.247,13.244,10.0]
[1672905885788,0.00092582,13.25,13.244,10.0]
[1672905886210,7.55,13.248,13.244,10.0]
[1672905888526,7.55,13.248,13.241,0.06576018]
[1672905888840,7.55,13.248,13.241,2.83893971]
[1672905891153,7.55,13.248,13.242,12.30070186]
[1672905891467,7.55,13.248,13.243,10.0]
[1672905894199,7.55,13.248,13.242,12.30070186]
[1672905894616,7.55,13.248,13.241,0.06576018]
[1672905894935,7.55,13.248,13.241,2.83883519]
[1672905896406,7.55,13.248,13.242,12.30070186]
[1672905896618,7.55,13.248,13.243,10.0]
[1672905899141,7.55,13.248,13.242,12.30070186]
[1672905899352,7.55,13.248,13.241,0.06576018]
[1672905899777,7.55,13.248,13.242,12.30070186]
[1672905899984,7.55,13.248,13.243,10.0]
[1672905903029,7.59092582,13.25,13.244,7.59]
[1672905903242,0.00092582,13.25,13.246,7.55]
[1672905903452,0.00092582,13.25,13.245,10.0]
[1672905907235,7.59,13.247,13.242,12.30070186]
[1672905907445,7.51,13.246,13.242,12.30070186]
[1672905908066,7.55,13.249,13.243,10.0]
[1672905914489,0.00092582,13.25,13.244,7.59]
[1672905914700,0.00092582,13.25,13.245,10.0]
[1672905916803,0.00092582,13.25,13.245,17.57]
[1672905918274,0.00092582,13.25,13.246,7.55]
[1672905918485,0.00092582,13.25,13.247,10.0]
[1672905918694,0.06413389,13.253,13.247,12.77130749]
[1672905918901,0.06413389,13.253,13.251,12.30070186]
[1672905919108,7.55,13.255,13.252,10.0]
[1672905919641,7.55,13.255,13.251,12.30070186]
[1672905919840,7.55,13.255,13.247,10.06716809]
[1672905920376,7.55,13.255,13.251,12.30070186]
[1672905922475,7.55,13.255,13.247,10.06716809]
[1672905922892,7.59,13.25,13.247,0.06716809]
[1672905923102,7.59,13.25,13.244,0.0713694]
[1672905923834,7.59,13.25,13.244,2.84380835]
[1672905938665,7.6509273,13.253,13.249,12.30070186]
[1672905938974,0.0709273,13.253,13.25,15.07314081]
[1672905939184,0.0714481,13.256,13.251,10.0]
[1672905939390,7.6153431,13.258,13.251,12.77243895]
[1672905939916,7.6153431,13.258,13.252,2.77243895]
[1672905940552,7.6153431,13.258,13.251,10.0]
[1672905941397,7.6153431,13.258,13.252,2.77106602]
[1672905943916,7.6153431,13.258,13.251,10.0]
[1672905945808,7.6153431,13.258,13.252,2.77112025]
[1672905946961,7.6153431,13.258,13.251,10.0]
[1672905951481,56.54,13.265,13.251,17.59]
[1672905951801,7.41,13.267,13.26,10.0]
[1672905952327,7.41,13.267,13.261,2.76912591]
[1672905954114,7.55,13.265,13.261,2.76912591]
[1672905955369,7.55,13.268,13.261,2.76912591]
[1672905955579,0.06965242,13.269,13.261,10.35912591]
[1672905955792,0.06965242,13.269,13.262,10.0]
[1672905957464,0.06965242,13.269,13.263,7.59]
[1672905957884,0.06965242,13.269,13.264,10.0]
[1672905963140,7.521,13.266,13.262,0.06398296]
[1672905963354,7.55,13.265,13.262,0.06398296]
[1672905963560,7.55,13.265,13.261,10.0]
[1672905964514,7.59,13.266,13.261,10.0]
[1672905967238,7.58,13.268,13.262,2.76864912]
[1672905967761,0.06965242,13.269,13.263,10.0]
[1672905967969,37.76895056,13.269,13.263,10.0]
[1672905968605,0.06965242,13.269,13.263,10.0]
[1672905968815,37.76895056,13.269,13.263,10.0]
[1672905969762,0.06965242,13.269,13.263,10.0]
[1672905969973,0.06965242,13.269,13.265,7.54]
[1672905970187,0.06965242,13.269,13.266,10.0]
[1672905970501,0.06386282,13.272,13.266,10.0]
[1672905970711,37.69929814,13.269,13.266,10.0]
[1672905972809,0.06386282,13.272,13.269,10.0]
[1672905973025,0.06218857,13.275,13.27,10.0]
[1672905973337,0.06658029,13.277,13.27,10.0]
[1672905976915,52.79929814,13.279,13.277,0.04603761]
[1672905979438,52.79929814,13.279,13.273,0.06376812]
[1672905979639,10.0,13.278,13.273,0.06376812]
[1672905980061,14.99,13.276,13.273,0.06376812]
[1672905980273,14.99,13.276,13.27,0.07130317]
[1672905980796,15.16351303,13.278,13.27,0.07130317]
[1672905981849,15.07,13.274,13.27,0.07130317]
[1672905983427,37.69929814,13.271,13.27,0.07130317]
[1672905983635,37.69929814,13.271,13.266,594.07126415]
[1672905983846,15.07,13.274,13.266,594.07126415]
[1672905985420,0.06114621,13.275,13.266,609.17126415]
[1672905986360,15.1,13.274,13.266,594.07126415]
[1672905990248,37.69929814,13.268,13.266,594.07126415]
[1672905990463,37.69929814,13.268,13.264,15.1]
[1672905990779,0.06177563,13.272,13.265,10.0]
[1672905991724,0.06177563,13.272,13.266,2.76716185]
[1672905992039,0.06177563,13.272,13.267,12.30070186]
[1672905992248,0.06177563,13.272,13.268,10.0]
[1672905994460,0.06177563,13.272,13.265,10.06512013]
[1672905994770,0.06177563,13.272,13.268,10.0]
[1672905995191,37.69929814,13.269,13.268,10.0]
[1672905995402,37.69929814,13.269,13.265,10.06512013]
[1672905996140,0.06177563,13.272,13.265,10.06512013]
[1672905997088,0.06177563,13.272,13.266,14.97]
[1672905997294,0.06177563,13.272,13.267,10.0]
[1672905997503,0.06177563,13.272,13.267,22.30070186]
[1672905997714,0.06177563,13.272,13.268,2.76708904]
[1672905998977,15.05,13.276,13.269,10.0]
[1672906001391,15.05,13.276,13.27,2.76715416]
[1672906001805,15.1,13.272,13.268,0.07023277]
[1672906002013,10.0,13.268,13.265,584.0]
[1672906002227,47.69929814,13.268,13.26,874.0]
[1672906002440,37.69929814,13.268,13.261,10.0]
[1672906002650,37.69929814,13.268,13.261,12.76838122]
[1672906003063,0.06839805,13.269,13.262,2.76838122]
[1672906003278,37.69929814,13.268,13.263,10.0]
[1672906003491,37.69929814,13.268,13.264,2.76838122]
[1672906009804,0.06839805,13.269,13.264,2.76838122]
[1672906010116,37.56329814,13.268,13.264,2.76838122]
[1672906010328,37.49529814,13.268,13.264,2.76838122]
[1672906012849,0.06839805,13.269,13.264,2.76838122]
[1672906013054,37.42729814,13.267,13.264,2.76838122]
[1672906015900,37.42729814,13.267,13.264,2.53991159]
[1672906017375,0.06839805,13.269,13.264,17.63991159]
[1672906017582,0.06839805,13.269,13.266,15.1]
[1672906017894,0.06625365,13.272,13.267,10.0]
[1672906018104,0.06536914,13.274,13.267,12.53991159]
[1672906018631,0.06536914,13.274,13.268,2.53991159]
[1672906020204,15.1,13.273,13.268,2.53991159]
[1672906020525,25.05,13.272,13.265,0.06318505]
[1672906020832,10.0,13.271,13.265,0.06318505]
[1672906021257,37.42729814,13.267,13.265,0.06318505]
[1672906021468,37.42729814,13.267,13.264,2.76829766]
[1672906021678,37.42729814,13.267,13.263,2.76829766]
[1672906022098,15.0,13.27,13.262,2.76829766]
[1672906022832,37.42729814,13.267,13.262,2.76829766]
[1672906023151,7.56,13.265,13.262,2.76829766]
[1672906023675,7.56,13.265,13.261,0.06932144]
[1672906023880,7.56,13.265,13.263,2.76829766]
[1672906024306,7.56,13.265,13.261,0.06932144]
[1672906024830,7.56,13.264,13.261,0.06932144]
[1672906025042,7.52,13.262,13.258,0.06373951]
[1672906025248,44.98729814,13.259,13.258,0.00373951]
[1672906025569,44.98729814,13.259,13.249,10.0]
[1672906025880,7.5,13.255,13.25,2.77018725]
[1672906026303,45.01575646,13.257,13.25,2.77018725]
[1672906027349,0.06845832,13.257,13.25,10.29018725]
[1672906027567,0.06845832,13.257,13.256,12.57270186]
[1672906027877,0.06289694,13.261,13.256,2.77018725]
[1672906028088,0.00089694,13.261,13.256,2.77018725]
[1672906028298,0.00089694,13.261,13.255,12.77018725]
[1672906028714,0.00089694,13.261,13.256,2.77018725]
[1672906029452,37.42729814,13.257,13.256,2.77018725]
[1672906029976,0.00089694,13.261,13.256,2.77018725]
[1672906030182,0.00089694,13.261,13.256,10.0]
[1672906030599,37.42729814,13.257,13.254,7.52]
[1672906030920,0.00089694,13.261,13.255,2.76994544]
[1672906031236,37.42729814,13.257,13.255,2.76994544]
[1672906031652,0.00089694,13.261,13.255,2.76994544]
[1672906032500,37.42729814,13.257,13.255,2.76994544]
[1672906032710,0.00089694,13.261,13.255,2.76994544]
[1672906034393,37.42729814,13.257,13.255,2.76994544]
[1672906035019,37.42729814,13.257,13.253,2.76994544]
[1672906037127,37.42729814,13.257,13.252,2.83320558]
[1672906038701,7.56,13.259,13.252,2.83320558]
[1672906039123,37.42729814,13.257,13.252,2.83320558]
[1672906039849,7.56,13.259,13.252,2.83320558]
[1672906040062,37.42729814,13.257,13.252,2.83320558]
[1672906044479,15.14,13.26,13.252,2.83320558]
[1672906057829,37.42729814,13.257,13.252,2.83320558]
[1672906058554,37.42729814,13.257,13.252,17.93320558]
[1672906059185,37.42729814,13.257,13.253,2.76994544]
[1672906059502,37.42729814,13.257,13.254,10.0]
[1672906059823,15.13089694,13.261,13.254,10.0]
[1672906060139,15.13089694,13.261,13.255,2.76994544]
[1672906060764,37.42729814,13.257,13.255,2.76994544]
[1672906061500,15.13089694,13.261,13.254,2.76994544]
[1672906063183,37.42729814,13.257,13.254,2.76994544]
[1672906063808,37.42729814,13.257,13.252,2.83320558]
[1672906064019,15.07089694,13.261,13.252,2.83320558]
[1672906064964,15.07089694,13.261,13.253,1834.0]
[1672906065177,0.00089694,13.261,13.257,12.57270186]
[1672906065384,0.00089694,13.261,13.258,10.0]
[1672906065596,15.03,13.263,13.258,10.0]
[1672906065904,15.03,13.263,13.259,2.76994544]
[1672906066539,10.0,13.26,13.255,0.0696678]
[1672906066748,15.07,13.257,13.255,0.0696678]
[1672906066962,15.07,13.257,13.251,0.0603843]
[1672906067166,15.15985548,13.259,13.249,17.9773056]
[1672906067374,15.15985548,13.259,13.25,10.0]
[1672906067585,15.15985548,13.259,13.25,12.77004162]
[1672906068118,15.15985548,13.259,13.251,2.77004162]
[1672906076943,37.42729814,13.256,13.251,2.77004162]
[1672906079258,37.42729814,13.256,13.25,2.77004162]
[1672906079468,37.42729814,13.256,13.251,10.0]
[1672906079880,15.15985548,13.259,13.25,12.77004162]
[1672906080096,37.42729814,13.256,13.252,2.77004162]
[1672906081043,37.42729814,13.256,13.251,2.77004162]
[1672906083459,15.15985548,13.259,13.251,2.77004162]
[1672906083872,15.15985548,13.259,13.251,10.0]
[1672906084406,15.15985548,13.259,13.252,2.77004162]
[1672906084933,15.09,13.257,13.252,2.77004162]
[1672906085147,10.0,13.256,13.252,2.77004162]
[1672906085662,10.0,13.256,13.249,0.06726398]
[1672906085663,10.0,13.256,13.249,2.8373056]
[1672906085872,47.42729814,13.256,13.249,2.8373056]
[1672906086928,37.42729814,13.256,13.249,17.9773056]
[1672906087460,37.42729814,13.256,13.25,2.77004162]
[1672906087666,37.42729814,13.256,13.251,10.0]
[1672906087980,15.14,13.258,13.252,2.77004162]
[1672906088396,10.0,13.255,13.252,2.77004162]
[1672906088928,10.0,13.255,13.251,2.77004162]
[1672906089871,37.42729814,13.256,13.25,2.77004162]
[1672906091346,7.53,13.258,13.25,2.77004162]
[1672906093341,37.42729814,13.256,13.25,2.77004162]
[1672906093551,10.0,13.255,13.25,2.77004162]
[1672906094073,7.53,13.258,13.25,2.77004162]
[1672906094498,37.42729814,13.256,13.25,2.77004162]
[1672906107214,7.51,13.257,13.25,2.77004162]
[1672906107423,37.42729814,13.256,13.25,2.77004162]
[1672906110046,10.0,13.255,13.25,2.77004162]
[1672906110361,7.51,13.253,13.25,2.77004162]
[1672906110891,7.51,13.253,13.249,0.06726398]
[1672906111519,7.57,13.254,13.249,0.06726398]
[1672906112360,45.06056391,13.256,13.249,0.06726398]
[1672906112571,10.0,13.255,13.249,2.8373056]
[1672906113201,45.06056391,13.256,13.249,2.8373056]
[1672906114773,45.06056391,13.256,13.25,10.0]
[1672906115406,45.06056391,13.256,13.251,2.77004162]
[1672906115724,7.63326577,13.256,13.251,2.77004162]
[1672906115934,0.06326577,13.256,13.251,2.77004162]
[1672906118243,37.49056391,13.256,13.251,2.77004162]
[1672906129288,37.49056391,13.256,13.25,2.77004162]
[1672906138732,10.0,13.254,13.25,2.77004162]
[1672906139159,10.0,13.254,13.249,0.06726398]
[1672906139683,17.51,13.255,13.249,0.06726398]
[1672906148728,7.57,13.254,13.249,0.06726398]
[1672906152195,45.06056391,13.256,13.249,10.06726398]
[1672906152405,45.06056391,13.256,13.249,0.06726398]
[1672906152721,45.06056391,13.256,13.25,2.77004162]
[1672906153140,45.06056391,13.256,13.251,10.0]
[1672906153575,45.06056391,13.256,13.252,2.77004162]
[1672906153871,7.63326577,13.256,13.252,2.77004162]
[1672906154083,45.06056391,13.256,13.252,2.77004162]
[1672906155350,45.06056391,13.256,13.25,2.77004162]
[1672906158818,7.63326577,13.256,13.25,2.77004162]
[1672906159036,37.42729814,13.255,13.25,2.77004162]
[1672906163651,7.63326577,13.256,13.25,2.77004162]
[1672906166177,37.42729814,13.265,13.255,12.57270186]
[1672906166389,7.57,13.263,13.256,10.0]
[1672906166701,7.57,13.263,13.256,12.77004162]
[1672906167119,7.57,13.263,13.257,2.77004162]
[1672906168380,7.63257656,13.264,13.257,2.77004162]
[1672906174382,7.57,13.271,13.263,7.57]
[1672906174589,10.0,13.27,13.263,7.57]
[1672906175011,7.53,13.27,13.261,7.57]
[1672906175328,37.42729814,13.265,13.262,10.0]
[1672906175741,37.42729814,13.265,13.263,2.7685468]
[1672906178164,37.42729814,13.265,13.262,2.7685468]
[1672906180587,7.59482087,13.27,13.262,2.7685468]
[1672906187841,37.42729814,13.265,13.262,2.7685468]
[1672906190046,17.57,13.264,13.262,2.7685468]
[1672906190674,17.57,13.264,13.261,0.06453214]
[1672906190894,17.57,13.264,13.258,2.82920841]
[1672906191096,7.57,13.264,13.258,2.82920841]
[1672906193622,7.57,13.261,13.258,8.41e-06]
[1672906193834,7.51,13.259,13.25,584.0]
[1672906194035,7.57,13.257,13.25,584.0]
[1672906194245,37.42729814,13.255,13.25,584.0]
[1672906194563,10.0,13.254,13.252,2.76999834]
[1672906195411,10.0,13.254,13.249,7.53]
[1672906195412,10.0,13.254,13.25,2.76999834]
[1672906195725,37.42729814,13.255,13.25,2.76999834]
[1672906197408,10.0,13.254,13.25,2.76999834]
[1672906197616,0.06975046,13.258,13.252,7.54]
[1672906197826,0.06975046,13.258,13.248,0.07137399]
[1672906197827,0.06975046,13.258,13.255,12.57270186]
[1672906198038,0.07079116,13.261,13.255,7.54]
[1672906198242,0.07079116,13.261,13.256,2.76999834]
[1672906198665,0.07079116,13.261,13.257,10.0]
[1672906198876,0.07079116,13.261,13.256,2.76999834]
[1672906200452,7.57,13.26,13.256,2.76999834]
[1672906200663,7.57,13.26,13.255,12.57270186]
[1672906200874,7.57,13.26,13.252,7.6391055]
[1672906201085,7.57,13.26,13.256,2.76892372]
[1672906201714,7.57,13.26,13.253,2.76892372]
[1672906201926,37.42729814,13.255,13.253,2.76892372]
[1672906202763,7.57,13.26,13.253,2.76892372]
[1672906204338,7.60079116,13.261,13.254,12.57270186]
[1672906204552,0.07079116,13.261,13.255,17.57]
[1672906204762,0.07079116,13.261,13.256,10.0]
[1672906204974,0.07079116,13.261,13.256,12.76892372]
[1672906205397,0.07079116,13.261,13.257,2.76892372]
[1672906207285,7.51,13.26,13.257,2.76892372]
[1672906207495,7.57,13.258,13.257,2.76892372]
[1672906207706,7.53,13.258,13.252,0.0691055]
[1672906207918,7.51,13.256,13.252,0.0691055]
[1672906208444,10.0,13.254,13.252,0.0691055]
[1672906208654,10.0,13.254,13.249,2.77005629]
[1672906209074,37.42729814,13.255,13.249,2.77005629]
[1672906209495,37.42729814,13.255,13.25,7.53]
[1672906209699,0.06369511,13.258,13.253,7.54]
[1672906209915,0.06369511,13.258,13.254,20.14270186]
[1672906210124,0.06369511,13.258,13.255,10.0]
[1672906210335,0.07094831,13.261,13.255,10.0]
[1672906210547,0.07094831,13.261,13.256,2.77005629]
[1672906213382,0.07094831,13.261,13.257,7.54]
[1672906213593,0.07094831,13.261,13.258,10.0]
[1672906213806,37.49085788,13.264,13.258,10.0]
[1672906214009,37.49085788,13.264,13.259,10.31005629]
[1672906214331,37.49085788,13.264,13.262,7.57]
[1672906214540,37.42729814,13.264,13.262,7.57]
[1672906214961,37.42729814,13.264,13.263,2.77005629]
[1672906217065,26.98159814,13.264,13.263,2.77005629]
[1672906217696,5.55839814,13.264,13.263,2.77005629]
[1672906217904,0.07148061,13.268,13.264,10.0]
[1672906218319,0.07148061,13.268,13.263,2.77005629]
[1672906218640,0.07148061,13.268,13.261,2.77005629]
[1672906219169,15.02,13.267,13.261,2.77005629]
[1672906219379,10.0,13.266,13.261,2.77005629]
[1672906219590,10.0,13.266,13.259,2.83191923]
[1672906220326,15.02,13.267,13.259,2.83191923]
[1672906220532,15.02,13.267,13.259,0.06186294]
[1672906221377,0.07148061,13.268,13.259,15.04186294]
[1672906221903,0.07148061,13.268,13.26,2.77005629]
[1672906222113,0.07148061,13.268,13.261,10.0]
[1672906222426,0.07148061,13.268,13.262,2.77005629]
[1672906223793,0.07148061,13.268,13.261,2.77005629]
[1672906225367,15.02,13.267,13.261,2.77005629]
[1672906225578,10.0,13.266,13.261,2.77005629]
[1672906225789,10.0,13.266,13.259,0.06186294]
[1672906226106,15.02,13.267,13.259,0.06186294]
[1672906238080,7.53,13.266,13.259,0.06186294]
[1672906238708,7.56,13.265,13.259,2.83191923]
[1672906239237,7.56,13.265,13.259,0.06186294]
[1672906242494,0.07148061,13.268,13.26,7.56]
[1672906242807,0.07148061,13.268,13.261,10.0]
[1672906243339,0.07148061,13.268,13.262,2.77005629]
[1672906245966,7.56,13.274,13.268,0.03455459]
[1672906260152,7.38865042,13.274,13.268,0.03455459]
[1672906267933,7.56,13.269,13.268,0.03455459]
[1672906272974,10.0,13.268,13.263,0.06788041]
[1672906274447,7.56,13.269,13.263,0.06788041]
[1672906280019,0.02178499,13.263,13.262,2.76815236]
[1672906298509,0.06134415,13.267,13.264,1833.97821501]
[1672906298719,0.06791577,13.27,13.265,10.0]
[1672906298929,7.6219574,13.272,13.265,1846.76815236]
[1672906299140,7.6219574,13.272,13.265,2.76815236]
[1672906299350,7.6219574,13.272,13.264,7.56]
[1672906299876,7.6219574,13.272,13.265,2.76808605]
[1672906301244,7.6219574,13.272,13.264,7.56]
[1672906306285,7.56,13.271,13.264,7.56]
[1672906314383,7.56,13.268,13.263,0.06059015]
[1672906323007,7.56,13.264,13.261,2.76825008]
[1672906323631,7.56,13.264,13.258,2.76825008]
[1672906324271,7.62201076,13.266,13.258,10.24825008]
[1672906324480,0.06201076,13.266,13.261,10.0]
[1672906324894,0.06201076,13.266,13.262,2.76825008]
[1672906326687,0.06201076,13.266,13.261,2.76825008]
[1672906329419,0.06201076,13.266,13.263,10.0]
[1672906329630,7.5,13.267,13.263,10.0]
[1672906329832,7.5,13.267,13.264,2.76825008]
[1672906330784,7.5,13.267,13.261,2.76825008]
[1672906332254,7.56,13.263,13.259,0.06228596]
[1672906332570,7.56,13.263,13.256,12.7683562]
[1672906333100,7.56,13.263,13.257,2.7683562]
[1672906334465,7.56,13.264,13.257,2.7683562]
[1672906338244,7.53,13.26,13.257,2.7683562]
[1672906338455,50.06054165,13.265,13.257,2.7683562]
[1672906338456,7.56,13.258,13.257,2.7683562]
[1672906338668,7.56,13.258,13.255,0.06378201]
[1672906338877,7.56,13.258,13.253,2.7683562]
[1672906339090,7.56,13.258,13.252,0.06572976]
[1672906340234,7.56,13.256,13.252,0.06572976]
[1672906341398,7.56,13.255,13.252,0.06572976]
[1672906341607,7.56,13.255,13.249,2.83912303]
[1672906341821,7.56,13.253,13.249,0.07076683]
[1672906345401,7.53,13.255,13.249,0.07076683]
[1672906345921,7.53,13.255,13.249,2.83912303]
[1672906347186,7.53,13.255,13.249,0.07076683]
[1672906352653,7.5,13.253,13.249,2.83912303]
[1672906353179,7.5,13.253,13.249,0.07076683]
[1672906356118,7.56,13.251,13.249,0.07076683]